fUST/lending_fUST_20250606
["ID","MTS","AMOUNT","RATE_DAILY","PERIOD"]
[364742263,1749225043077,-440.0,0.00019726,2]
[364742265,1749225043087,-440.0,0.00019726,2]
[364742267,1749225043096,-440.0,0.00019726,2]
[364742268,1749225043105,-855.14,0.00019726,2]
[364742270,1749225043114,-788.34,0.00019726,2]
[364742272,1749225043125,-440.0,0.00019726,2]
[364742274,1749225043135,-440.0,0.00019726,2]
[364742276,1749225043145,-440.0,0.00019726,2]
[364742278,1749225043154,-440.0,0.00019726,2]
[364742280,1749225043164,-1040.34,0.00019726,2]
[364742282,1749225043173,-440.0,0.00019726,2]
[364742283,1749225043183,-440.0,0.00019726,2]
[364742285,1749225043192,-466.15,0.00019726,2]
[364742287,1749225043201,-647.62,0.00019726,2]
[364742289,1749225043211,-1629.68,0.00019726,2]
[364742291,1749225043220,-302.00124718,0.00019726,2]
[364742293,1749225043230,-440.0,0.00019726,2]
[364742295,1749225043239,-440.0,0.00019726,2]
[364742296,1749225043248,-440.0,0.00019726,2]
[364742298,1749225043258,-440.0,0.00019726,2]
[364742300,1749225043268,-440.0,0.00019726,2]
[364742302,1749225043277,-440.0,0.00019726,2]
[364742304,1749225043287,-1744.64,0.00019726,2]
[364742306,1749225043296,-1444.95,0.00019726,2]
[364742308,1749225043305,-3022.65,0.00019726,2]
[364742310,1749225043315,-1328.3,0.00019726,2]
[364742312,1749225043325,-448.21050814,0.00019737,2]
[364742313,1749225043334,-500.0,0.00019764,2]
[364742315,1749225043344,-500.83294456,0.00019764,2]
[364742318,1749225043355,-502.19685851,0.00019764,2]
[364742319,1749225043364,-500.95406167,0.00019765,2]
[364742321,1749225043374,-322.69827319,0.00019848,2]
[364742323,1749225043384,-2700.06623908,0.00019869,2]
[364742325,1749225043393,-1311.85414777,0.000199,2]
[364742327,1749225043403,-500.0,0.00019999,2]
[364742329,1749225043413,-559.42927099,0.00019999,2]
[364742331,1749225043422,-440.0,0.0002,2]
[364742333,1749225043432,-430.0,0.0002,2]
[364742335,1749225043442,-440.0,0.0002,2]
[364742337,1749225043451,-602.34,0.0002,2]
[364742339,1749225043460,-440.0,0.0002,2]
[364742341,1749225043470,-440.0,0.0002,2]
[364742343,1749225043480,-440.0,0.0002,2]
[364742345,1749225043489,-440.0,0.0002,2]
[364742347,1749225043499,-440.0,0.0002,2]
[364742349,1749225043508,-440.0,0.0002,2]
[364742351,1749225043518,-440.0,0.0002,2]
[364742353,1749225043527,-584.62,0.0002,2]
[364742355,1749225043536,-440.0,0.0002,2]
[364742357,1749225043546,-440.0,0.0002,2]
[364742358,1749225043555,-440.0,0.0002,2]
[364742360,1749225043565,-440.0,0.0002,2]
[364742362,1749225043574,-723.65,0.0002,2]
[364742364,1749225043584,-440.0,0.0002,2]
[364742366,1749225043593,-440.0,0.0002,2]
[364742368,1749225043602,-2630.03,0.0002,2]
[364742370,1749225043612,-525.93,0.0002,2]
[364742371,1749225043621,-1854.3,0.0002,2]
[364742373,1749225043631,-440.0,0.0002,2]
[364742375,1749225043640,-440.0,0.0002,2]
[364742377,1749225043649,-904.17,0.0002,2]
[364742379,1749225043659,-640.74,0.0002,2]
[364742380,1749225043669,-177.5,0.0002,2]
[364742382,1749225043678,-440.0,0.0002,2]
[364742384,1749225043687,-440.0,0.0002,2]
[364742386,1749225043697,-803.46,0.0002,2]
[364742388,1749225043706,-2401.81,0.0002,2]
[364742390,1749225043716,-440.0,0.0002,2]
[364742392,1749225043725,-440.0,0.0002,2]
[364742394,1749225043734,-440.0,0.0002,2]
[364742395,1749225043743,-1193.36,0.0002,2]
[364742397,1749225043753,-500.13,0.0002,2]
[364742399,1749225043762,-440.0,0.0002,2]
[364742401,1749225043771,-440.0,0.0002,2]
[364742403,1749225043780,-440.0,0.0002,2]
[364742405,1749225043790,-855.14,0.0002,2]
[364742407,1749225043799,-788.34,0.0002,2]
[364742409,1749225043808,-440.0,0.0002,2]
[364742410,1749225043816,-440.0,0.0002,2]
[364742412,1749225043825,-440.0,0.0002,2]
[364742414,1749225043836,-440.0,0.0002,2]
[364742416,1749225043846,-1040.34,0.0002,2]
[364742418,1749225043855,-440.0,0.0002,2]
[364742420,1749225043864,-440.0,0.0002,2]
[364742422,1749225043873,-466.15,0.0002,2]
[364742423,1749225043883,-647.62,0.0002,2]
[364742425,1749225043892,-1629.68,0.0002,2]
[364742427,1749225043902,-440.0,0.0002,2]
[364742429,1749225043911,-440.0,0.0002,2]
[364742431,1749225043920,-440.0,0.0002,2]
[364742433,1749225043930,-440.0,0.0002,2]
[364742435,1749225043939,-440.0,0.0002,2]
[364742437,1749225043948,-440.0,0.0002,2]
[364742439,1749225043957,-1744.64,0.0002,2]
[364742441,1749225043966,-1444.95,0.0002,2]
[364742442,1749225043980,-3022.65,0.0002,2]
[364742444,1749225043989,-1311.85414777,0.00020072,2]
[364742446,1749225043999,-172.49,0.00020143,2]
[364742448,1749225044008,-410.937534,0.00020187,2]
[364742450,1749225044018,-1311.85414777,0.00020245,2]
[364742452,1749225044027,-440.0,0.00020273,2]
[364742454,1749225044037,-440.0,0.00020273,2]
[364742456,1749225044048,-602.34,0.00020273,2]
[364742458,1749225044057,-303.62160747,0.00020273,2]
[364742460,1749225044066,-440.0,0.00020273,2]
[364742462,1749225044075,-440.0,0.00020273,2]
[364742463,1749225044085,-221.56,0.00020273,2]
[364742465,1749225044094,-440.0,0.00020273,2]
[364742467,1749225044103,-440.0,0.00020273,2]
[364742469,1749225044113,-584.62,0.00020273,2]
[364742471,1749225044122,-440.0,0.00020273,2]
[364742473,1749225044131,-440.0,0.00020273,2]
[364742475,1749225044142,-440.0,0.00020273,2]
[364742477,1749225044152,-723.65,0.00020273,2]
[364742479,1749225044161,-440.0,0.00020273,2]
[364742481,1749225044170,-350.0,0.00020273,2]
[364742483,1749225044179,-2630.03,0.00020273,2]
[364742484,1749225044188,-525.93,0.00020273,2]
[364742486,1749225044197,-1854.3,0.00020273,2]
[364742488,1749225044206,-440.0,0.00020273,2]
[364742490,1749225044215,-440.0,0.00020273,2]
[364742492,1749225044225,-904.17,0.00020273,2]
[364742494,1749225044234,-640.74,0.00020273,2]
[364742496,1749225044244,-440.0,0.00020273,2]
[364742498,1749225044253,-440.0,0.00020273,2]
[364742500,1749225044262,-803.46,0.00020273,2]
[364742502,1749225044271,-2401.81,0.00020273,2]
[364742503,1749225044281,-350.41,0.00020273,2]
[364742505,1749225044291,-440.0,0.00020273,2]
[364742507,1749225044300,-440.0,0.00020273,2]
[364742509,1749225044309,-1193.36,0.00020273,2]
[364742511,1749225044319,-500.13,0.00020273,2]
[364742513,1749225044329,-440.0,0.00020273,2]
[364742515,1749225044338,-440.0,0.00020273,2]
[364742517,1749225044347,-440.0,0.00020273,2]
[364742519,1749225044356,-855.14,0.00020273,2]
[364742521,1749225044365,-788.34,0.00020273,2]
[364742523,1749225044375,-430.0,0.00020273,2]
[364742525,1749225044384,-440.0,0.00020273,2]
[364742526,1749225044393,-440.0,0.00020273,2]
[364742528,1749225044402,-406.68,0.00020273,2]
[364742530,1749225044411,-1040.34,0.00020273,2]
[364742532,1749225044421,-440.0,0.00020273,2]
[364742534,1749225044431,-440.0,0.00020273,2]
[364742536,1749225044441,-466.15,0.00020273,2]
[364742538,1749225044450,-647.62,0.00020273,2]
[364742540,1749225044460,-1629.68,0.00020273,2]
[364742542,1749225044470,-400.0,0.00020273,2]
[364742544,1749225044480,-440.0,0.00020273,2]
[364742546,1749225044490,-440.0,0.00020273,2]
[364742548,1749225044499,-440.0,0.00020273,2]
[364742550,1749225044509,-440.0,0.00020273,2]
[364742552,1749225044519,-440.0,0.00020273,2]
[364742553,1749225044528,-1744.64,0.00020273,2]
[364742555,1749225044539,-1444.95,0.00020273,2]
[364742568,1749225044657,-3022.65,0.00020273,2]
[364742570,1749225044671,-500.0,0.00020277,2]
[364742572,1749225044680,-500.0,0.00020324,2]
[364742574,1749225044690,-500.0,0.00020324,2]
[364742576,1749225044699,-150.0,0.00020331,2]
[364742578,1749225044709,-1311.85414777,0.00020417,3]
[364742580,1749225044718,-3300.0,0.000205,2]
[364742582,1749225044727,-160.0,0.00020513,2]
[364742584,1749225044736,-160.0,0.00020516,2]
[364742585,1749225044745,-834.50537533,0.00020516,2]
[364742586,1749225044755,-11849.89752062,0.00020516,2]
[364742587,1749225044764,-160.0,0.00020516,2]
[364742588,1749225044774,-423.83542519,0.00020516,2]
[364742589,1749225044784,-160.0,0.00020516,2]
[364742590,1749225044793,-160.0,0.00020516,2]
[364742591,1749225044803,-229.52673067,0.00020516,2]
[364742592,1749225044812,-212.976918,0.00020516,2]
[364742593,1749225044821,-842.5625,0.00020516,2]
[364742594,1749225044830,-160.0,0.00020516,2]
[364742595,1749225044840,-160.0,0.00020516,2]
[364742596,1749225044849,-160.0,0.00020538,2]
[364742597,1749225044858,-300.0,0.00020547,2]
[364742598,1749225044868,-440.0,0.00020547,2]
[364742599,1749225044877,-602.34,0.00020547,2]
[364742600,1749225044887,-440.0,0.00020547,2]
[364742601,1749225044896,-440.0,0.00020547,2]
[364742602,1749225044905,-440.0,0.00020547,2]
[364742603,1749225044915,-440.0,0.00020547,2]
[364742604,1749225044924,-584.62,0.00020547,2]
[364742605,1749225044934,-571.07108352,0.00020547,2]
[364742606,1749225044944,-440.0,0.00020547,2]
[364742607,1749225044954,-440.0,0.00020547,2]
[364742608,1749225044964,-723.65,0.00020547,2]
[364742609,1749225044977,-440.0,0.00020547,2]
[364742610,1749225044987,-2630.03,0.00020547,2]
[364742611,1749225044996,-525.93,0.00020547,2]
[364742612,1749225045006,-1854.3,0.00020547,2]
[364742613,1749225045016,-440.0,0.00020547,2]
[364742614,1749225045026,-440.0,0.00020547,2]
[364742615,1749225045036,-904.17,0.00020547,2]
[364742616,1749225045046,-640.74,0.00020547,2]
[364742618,1749225045056,-440.0,0.00020547,2]
[364742620,1749225045066,-440.0,0.00020547,2]
[364742622,1749225045075,-803.46,0.00020547,2]
[364742624,1749225045084,-2401.81,0.00020547,2]
[364742626,1749225045094,-440.0,0.00020547,2]
[364742628,1749225045103,-440.0,0.00020547,2]
[364742630,1749225045113,-1193.36,0.00020547,2]
[364742632,1749225045122,-500.13,0.00020547,2]
[364742634,1749225045132,-209.96810302,0.00020547,2]
[364742636,1749225045142,-440.0,0.00020547,2]
[364742638,1749225045152,-429.70771293,0.00020547,2]
[364742640,1749225045162,-855.14,0.00020547,2]
[364742642,1749225045171,-788.34,0.00020547,2]
[364742644,1749225045181,-440.0,0.00020547,2]
[364742646,1749225045191,-249.3495711,0.00020547,2]
[364742648,1749225045200,-1040.34,0.00020547,2]
[364742650,1749225045209,-440.0,0.00020547,2]
[364742652,1749225045219,-440.0,0.00020547,2]
[364742654,1749225045228,-466.15,0.00020547,2]
[364742656,1749225045237,-647.62,0.00020547,2]
[364742658,1749225045247,-1629.68,0.00020547,2]
[364742660,1749225045257,-440.0,0.00020547,2]
[364742662,1749225045268,-440.0,0.00020547,2]
[364742664,1749225045278,-440.0,0.00020547,2]
[364742666,1749225045288,-440.0,0.00020547,2]
[364742668,1749225045298,-500.0,0.00020547,2]
[364742670,1749225045307,-440.0,0.00020547,2]
[364742672,1749225045317,-1744.64,0.00020547,2]
[364742674,1749225045326,-3022.65,0.00020547,2]
[364742676,1749225045336,-1444.95,0.00020547,2]
[364742678,1749225045345,-1311.85414777,0.0002059,3]
[364742680,1749225045354,-650.19,0.000206,2]
[364742682,1749225045364,-322.69827319,0.00020618,2]
[364742684,1749225045373,-420.0,0.00020709,2]
[364742686,1749225045383,-1100.0,0.00020762,2]
[364742688,1749225045393,-1311.85414777,0.00020762,3]
[364742690,1749225045403,-440.0,0.00020821,2]
[364742692,1749225045412,-602.34,0.00020821,2]
[364742694,1749225045423,-440.0,0.00020821,2]
[364742696,1749225045432,-440.0,0.00020821,2]
[364742698,1749225045442,-440.0,0.00020821,2]
[364742700,1749225045452,-440.0,0.00020821,2]
[364742702,1749225045462,-584.62,0.00020821,2]
[364742704,1749225045472,-440.0,0.00020821,2]
[364742706,1749225045482,-440.0,0.00020821,2]
[364742708,1749225045492,-723.65,0.00020821,2]
[364742710,1749225045502,-440.0,0.00020821,2]
[364742712,1749225045512,-2630.03,0.00020821,2]
[364742714,1749225045522,-525.93,0.00020821,2]
[364742716,1749225045532,-1854.3,0.00020821,2]
[364742718,1749225045543,-260.28454956,0.00020821,2]
[364742720,1749225045552,-440.0,0.00020821,2]
[364742722,1749225045562,-904.17,0.00020821,2]
[364742724,1749225045572,-640.74,0.00020821,2]
[364742726,1749225045582,-440.0,0.00020821,2]
[364742728,1749225045591,-440.0,0.00020821,2]
[364742730,1749225045601,-803.46,0.00020821,2]
[364742732,1749225045611,-2401.81,0.00020821,2]
[364742734,1749225045620,-440.0,0.00020821,2]
[364742736,1749225045630,-440.0,0.00020821,2]
[364742738,1749225045640,-1193.36,0.00020821,2]
[364742740,1749225045650,-500.13,0.00020821,2]
[364742742,1749225045660,-247.11625404,0.00020821,2]
[364742744,1749225045670,-855.14,0.00020821,2]
[364742746,1749225045680,-788.34,0.00020821,2]
[364742748,1749225045690,-440.0,0.00020821,2]
[364742750,1749225045700,-1040.34,0.00020821,2]
[364742752,1749225045710,-440.0,0.00020821,2]
[364742754,1749225045720,-440.0,0.00020821,2]
[364742756,1749225045730,-466.15,0.00020821,2]
[364742758,1749225045740,-647.62,0.00020821,2]
[364742760,1749225045749,-1629.68,0.00020821,2]
[364742762,1749225045759,-440.0,0.00020821,2]
[364742764,1749225045768,-476.51,0.00020821,2]
[364742766,1749225045777,-440.0,0.00020821,2]
[364742768,1749225045787,-440.0,0.00020821,2]
[364742770,1749225045796,-450.4,0.00020821,2]
[364742772,1749225045806,-3022.65,0.00020821,2]
[364742774,1749225045816,-1444.95,0.00020821,2]
[364742776,1749225045826,-292.35676945,0.00020833,2]
[364742778,1749225045836,-420.0,0.00020898,2]
[364742780,1749225045846,-1311.85414777,0.00020934,4]
[364742782,1749225045856,-160.0,0.00021037,3]
[364742784,1749225045865,-440.0,0.00021095,2]
[364742786,1749225045875,-602.34,0.00021095,2]
[364742788,1749225045885,-440.0,0.00021095,2]
[364742790,1749225045895,-440.0,0.00021095,2]
[364742792,1749225045905,-494.07415984,0.00021095,2]
[364742794,1749225045914,-440.0,0.00021095,2]
[364742796,1749225045924,-584.62,0.00021095,2]
[364742798,1749225045933,-440.0,0.00021095,2]
[364742800,1749225045943,-440.0,0.00021095,2]
[364742802,1749225045952,-723.65,0.00021095,2]
[364742804,1749225045962,-440.0,0.00021095,2]
[364742806,1749225045975,-2630.03,0.00021095,2]
[364742808,1749225045984,-525.93,0.00021095,2]
[364742810,1749225045994,-1854.3,0.00021095,2]
[364742812,1749225046004,-440.0,0.00021095,2]
[364742814,1749225046015,-904.17,0.00021095,2]
[364742816,1749225046025,-640.74,0.00021095,2]
[364742818,1749225046036,-440.0,0.00021095,2]
[364742820,1749225046045,-440.0,0.00021095,2]
[364742822,1749225046057,-803.46,0.00021095,2]
[364742824,1749225046067,-2401.81,0.00021095,2]
[364742826,1749225046076,-440.0,0.00021095,2]
[364742827,1749225046085,-440.0,0.00021095,2]
[364742829,1749225046095,-1193.36,0.00021095,2]
[364742831,1749225046105,-500.13,0.00021095,2]
[364742834,1749225046115,-855.14,0.00021095,2]
[364742835,1749225046125,-788.34,0.00021095,2]
[364742837,1749225046135,-440.0,0.00021095,2]
[364742839,1749225046146,-1040.34,0.00021095,2]
[364742841,1749225046156,-440.0,0.00021095,2]
[364742844,1749225046166,-440.0,0.00021095,2]
[364742846,1749225046176,-466.15,0.00021095,2]
[364742848,1749225046186,-647.62,0.00021095,2]
[364742850,1749225046196,-1629.68,0.00021095,2]
[364742852,1749225046205,-440.0,0.00021095,2]
[364742854,1749225046215,-440.0,0.00021095,2]
[364742856,1749225046225,-440.0,0.00021095,2]
[364742858,1749225046235,-500.0,0.00021095,3]
[364742860,1749225046244,-3022.65,0.00021095,2]
[364742862,1749225046253,-1444.95,0.00021095,2]
[364742863,1749225046263,-1311.85414777,0.00021107,4]
[364742865,1749225046272,-150.0,0.00021113,2]
[364742868,1749225046282,-263.26177452,0.00021116,2]
[364742870,1749225046292,-207.4,0.00021252,2]
[364742872,1749225046302,-500.0,0.00021252,2]
[364742875,1749225046312,-500.0,0.00021252,2]
[364742876,1749225046322,-500.0,0.00021252,2]
[364742878,1749225046331,-500.0,0.00021252,2]
[364742881,1749225046341,-5000.0,0.00021252,2]
[364742882,1749225046350,-500.0,0.00021252,2]
[364742884,1749225046360,-500.0,0.00021252,2]
[364742885,1749225046370,-500.0,0.00021252,2]
[364742886,1749225046379,-500.0,0.00021252,2]
[364742887,1749225046390,-500.0,0.00021252,2]
[364742888,1749225046400,-500.0,0.00021252,2]
[364742889,1749225046410,-500.0,0.00021252,2]
[364742890,1749225046419,-500.0,0.00021252,2]
[364742891,1749225046429,-500.0,0.00021252,2]
[364742892,1749225046439,-500.0,0.00021252,2]
[364742893,1749225046449,-500.0,0.00021252,2]
[364742894,1749225046459,-1311.85414777,0.00021279,5]
[364742895,1749225046469,-360.40095936,0.00021297,2]
[364742896,1749225046479,-440.0,0.00021369,2]
[364742897,1749225046489,-602.34,0.00021369,2]
[364742898,1749225046499,-440.0,0.00021369,2]
[364742899,1749225046509,-440.0,0.00021369,2]
[364742900,1749225046519,-440.0,0.00021369,2]
[364742901,1749225046529,-584.62,0.00021369,2]
[364742902,1749225046539,-440.0,0.00021369,2]
[364742903,1749225046550,-440.0,0.00021369,2]
[364742904,1749225046560,-723.65,0.00021369,2]
[364742905,1749225046570,-440.0,0.00021369,2]
[364742906,1749225046581,-2630.03,0.00021369,2]
[364742907,1749225046591,-525.93,0.00021369,2]
[364742908,1749225046601,-1854.3,0.00021369,2]
[364742909,1749225046612,-440.0,0.00021369,2]
[364742910,1749225046622,-904.17,0.00021369,2]
[364742911,1749225046632,-640.74,0.00021369,2]
[364742912,1749225046643,-440.0,0.00021369,2]
[364742913,1749225046653,-440.0,0.00021369,2]
[364742914,1749225046663,-803.46,0.00021369,2]
[364742915,1749225046674,-2401.81,0.00021369,2]
[364742916,1749225046684,-440.0,0.00021369,2]
[364742917,1749225046694,-451.78,0.00021369,2]
[364742918,1749225046703,-1193.36,0.00021369,2]
[364742919,1749225046714,-500.13,0.00021369,2]
[364742921,1749225046724,-855.14,0.00021369,2]
[364742923,1749225046733,-788.34,0.00021369,2]
[364742925,1749225046744,-440.0,0.00021369,2]
[364742927,1749225046754,-1040.34,0.00021369,2]
[364742929,1749225046763,-550.23909204,0.00021369,2]
[364742931,1749225046772,-440.0,0.00021369,2]
[364742933,1749225046782,-466.15,0.00021369,2]
[364742935,1749225046792,-647.62,0.00021369,2]
[364742937,1749225046802,-1629.68,0.00021369,2]
[364742939,1749225046812,-440.0,0.00021369,2]
[364742941,1749225046822,-440.0,0.00021369,2]
[364742943,1749225046831,-217.82904102,0.00021369,2]
[364742945,1749225046840,-1444.95,0.00021369,2]
[364742947,1749225046849,-3022.65,0.00021369,2]
[364742949,1749225046859,-322.69827319,0.00021388,2]
[364742951,1749225046868,-1311.85414777,0.00021452,5]
[364742953,1749225046877,-5000.0,0.00021484,2]
[364742955,1749225046886,-1311.85414777,0.00021624,5]
[364742957,1749225046895,-223.75967,0.00021642,2]
[364742959,1749225046905,-440.0,0.00021643,2]
[364742961,1749225046915,-602.34,0.00021643,2]
[364742963,1749225046925,-440.0,0.00021643,2]
[364742965,1749225046934,-440.0,0.00021643,2]
[364742967,1749225046944,-440.0,0.00021643,2]
[364742969,1749225046953,-584.62,0.00021643,2]
[364742971,1749225046963,-440.0,0.00021643,2]
[364742973,1749225046975,-440.0,0.00021643,2]
[364742975,1749225046984,-723.65,0.00021643,2]
[364742977,1749225046994,-440.0,0.00021643,2]
[364742979,1749225047004,-2630.03,0.00021643,2]
[364742981,1749225047014,-525.93,0.00021643,2]
[364742983,1749225047023,-1854.3,0.00021643,2]
[364742985,1749225047033,-440.0,0.00021643,2]
[364742987,1749225047044,-904.17,0.00021643,2]
[364742989,1749225047055,-640.74,0.00021643,2]
[364742990,1749225047065,-168.50953021,0.00021643,2]
[364742991,1749225047102,-440.0,0.00021643,2]
[364742992,1749225047111,-803.46,0.00021643,2]
[364742993,1749225047122,-2401.81,0.00021643,2]
[364742994,1749225047131,-440.0,0.00021643,2]
[364742995,1749225047141,-1193.36,0.00021643,2]
[364742996,1749225047150,-500.13,0.00021643,2]
[364742997,1749225047160,-855.14,0.00021643,2]
[364742998,1749225047169,-788.34,0.00021643,2]
[364742999,1749225047178,-182.02485087,0.00021643,2]
[364743000,1749225047188,-1040.34,0.00021643,2]
[364743001,1749225047197,-440.0,0.00021643,2]
[364743002,1749225047207,-466.15,0.00021643,2]
[364743003,1749225047217,-647.62,0.00021643,2]
[364743004,1749225047227,-1629.68,0.00021643,2]
[364743005,1749225047237,-440.0,0.00021643,2]
[364743006,1749225047247,-440.0,0.00021643,2]
[364743007,1749225047256,-500.0,0.00021643,4]
[364743008,1749225047265,-1444.95,0.00021643,2]
[364743009,1749225047275,-3022.65,0.00021643,2]
[364743010,1749225047283,-1311.85414777,0.00021797,6]
[364743011,1749225047294,-5000.0,0.000218,2]
[364743012,1749225047303,-1100.0,0.00021858,2]
[364743013,1749225047312,-440.0,0.00021917,2]
[364743014,1749225047321,-602.34,0.00021917,2]
[364743015,1749225047330,-440.0,0.00021917,2]
[364743016,1749225047340,-440.0,0.00021917,2]
[364743017,1749225047349,-440.0,0.00021917,2]
[364743018,1749225047359,-584.62,0.00021917,2]
[364743019,1749225047368,-440.0,0.00021917,2]
[364743020,1749225047377,-440.0,0.00021917,2]
[364743021,1749225047387,-723.65,0.00021917,2]
[364743022,1749225047396,-400.0,0.00021917,2]
[364743023,1749225047405,-400.0,0.00021917,2]
[364743024,1749225047415,-400.0,0.00021917,2]
[364743025,1749225047425,-174.73,0.00021917,2]
[364743026,1749225047435,-440.0,0.00021917,2]
[364743027,1749225047444,-2630.03,0.00021917,2]
[364743028,1749225047454,-525.93,0.00021917,2]
[364743029,1749225047464,-1854.3,0.00021917,2]
[364743030,1749225047474,-440.0,0.00021917,2]
[364743032,1749225047484,-904.17,0.00021917,2]
[364743033,1749225047493,-640.74,0.00021917,2]
[364743034,1749225047502,-440.0,0.00021917,2]
[364743036,1749225047511,-803.46,0.00021917,2]
[364743037,1749225047521,-2401.81,0.00021917,2]
[364743038,1749225047531,-440.0,0.00021917,2]
[364743039,1749225047540,-1193.36,0.00021917,2]
[364743040,1749225047550,-500.13,0.00021917,2]
[364743041,1749225047560,-500.0,0.00021917,2]
[364743042,1749225047570,-855.14,0.00021917,2]
[364743043,1749225047580,-788.34,0.00021917,2]
[364743045,1749225047589,-1040.34,0.00021917,2]
[364743046,1749225047599,-440.0,0.00021917,2]
[364743048,1749225047609,-466.15,0.00021917,2]
[364743049,1749225047618,-647.62,0.00021917,2]
[364743050,1749225047628,-1629.68,0.00021917,2]
[364743051,1749225047637,-440.0,0.00021917,2]
[364743052,1749225047647,-440.0,0.00021917,2]
[364743053,1749225047656,-3022.65,0.00021917,2]
[364743054,1749225047666,-1444.95,0.00021917,2]
[364743055,1749225047676,-1311.85414777,0.00021969,6]
[364743056,1749225047686,-101911.67,0.00022,7]
[364743057,1749225047695,-37107.08,0.00022,2]
[364743058,1749225047705,-842.5625,0.00022,7]
[364743059,1749225047715,-11849.89752062,0.00022,7]
[364743060,1749225047724,-500.0,0.00022121,2]
[364743061,1749225047734,-1311.85414777,0.00022141,6]
[364743062,1749225047743,-322.69827319,0.00022158,2]
[364743063,1749225047752,-500.0,0.00022175,2]
[364743064,1749225047762,-500.0,0.00022175,2]
[364743065,1749225047771,-440.0,0.00022191,2]
[364743066,1749225047780,-602.34,0.00022191,2]
[364743067,1749225047789,-440.0,0.00022191,2]
[364743068,1749225047799,-440.0,0.00022191,2]
[364743069,1749225047808,-440.0,0.00022191,2]
[364743070,1749225047818,-584.62,0.00022191,2]
[364743071,1749225047827,-440.0,0.00022191,2]
[364743072,1749225047836,-171.89782279,0.00022191,2]
[364743073,1749225047846,-723.65,0.00022191,2]
[364743074,1749225047855,-440.0,0.00022191,2]
[364743075,1749225047864,-2630.03,0.00022191,2]
[364743076,1749225047873,-525.93,0.00022191,2]
[364743077,1749225047882,-1854.3,0.00022191,2]
[364743078,1749225047891,-440.0,0.00022191,2]
[364743079,1749225047900,-904.17,0.00022191,2]
[364743080,1749225047910,-640.74,0.00022191,2]
[364743081,1749225047919,-440.0,0.00022191,2]
[364743082,1749225047928,-803.46,0.00022191,2]
[364743083,1749225047937,-2401.81,0.00022191,2]
[364743084,1749225047948,-440.0,0.00022191,2]
[364743085,1749225047957,-1193.36,0.00022191,2]
[364743087,1749225047967,-500.13,0.00022191,2]
[364743089,1749225047980,-855.14,0.00022191,2]
[364743091,1749225047990,-788.34,0.00022191,2]
[364743094,1749225048000,-1040.34,0.00022191,2]
[364743097,1749225048010,-440.0,0.00022191,2]
[364743099,1749225048020,-466.15,0.00022191,2]
[364743101,1749225048030,-647.62,0.00022191,2]
[364743103,1749225048039,-1629.68,0.00022191,2]